Cogmind - Beta 16.1 --- EXPLORER MODE // 2026.03.14 @ 08:51:52 Player: fumiduki Result: Destroyed by H-77 Assassin with High-powered Shotgun Performance ------------- Evolutions (6) 3000 Regions Visited (5) 1000 Robots Destroyed (97) 485 Value Destroyed (4312) 4312 Prototype IDs (5) 100 Alien Tech Used (0) 0 Bonus (344) 344 TOTAL SCORE: 9241 Bonus ------- High Alert Combat Kills 415 Friendly Fire -71 Cogmind --------- Core Integrity 0/1150 Matter 300/300 Energy 89/100 System Corruption 13% Temperature Cool (0) Movement Rolling (80) Location -4/Factory Parts ------- > --- POWER (2) -------- (None) > --- PROPULSION (5) --- Wheel > --- UTILITY (9) ------ (None) > --- WEAPON (4) ------- (None) > --- INVENTORY (5) ---- Advanced Salvage Targeting Computer Improved Point Defense System System Restoration Module Peak State ------------ > --- POWER ------------ Antimatter Reactor Light Antimatter Reactor > --- PROPULSION ------- Carbon-fiber Leg Carbon-fiber Leg Improved VSS Leg Myomer Leg Experimental Flexi-carbon Leg > --- UTILITY ---------- Improved Heat Sink Large Storage Unit Medium Matter Pod Active Sensor Suite Improved Target Analyzer Experimental ECM Suite Improved Focal Shield > --- WEAPON ----------- Neutron Cannon Enhanced Coil Gun Railgun Heavy Gauss Cannon > --- INVENTORY -------- Micro Fission Core Improved VSS Leg Myomer Leg Myomer Leg Myomer Leg Myomer Leg Myomer Leg High-capacity Battery Advanced Salvage Targeting Computer Improved Kinecellerator Hardened Heavy Armor Plating Improved Point Defense System System Restoration Module Heavy Missile Launcher [Rating: 127] Favorites ----------- Power Ion Engine Engine Ion Engine Power Core Micro Fission Core Reactor Antimatter Reactor Propulsion Carbon-fiber Leg Leg Carbon-fiber Leg Wheel Wheel Utility Medium Matter Pod Device Improved Heat Sink Storage Medium Matter Pod Processor Improved Target Analyzer Protection Scrap Shield Weapon Light Assault Rifle Energy Gun Gatling Laser Energy Cannon Neutron Cannon Ballistic Gun Light Assault Rifle Ballistic Cannon Heavy Gauss Cannon Launcher Heavy Missile Launcher Special Weapon Welding Torch Build | -11 -10 -10 -7 -5 -4 ------- Run | Yrd Mat Sub Rec Fac Fac Slots Evolved 13 | . 1 . . 10 2 Power 1 | . . . . 1 . Propulsion 3 | . . . . 2 1 Utility 7 | . 1 . . 5 1 Weapon 2 | . . . . 2 . Parts Attached 77 | 6 3 1 1 34 32 Power 11 | 1 . . . 5 5 Engine 5 | 1 . . . 4 . Core 2 | . . . . 1 1 Reactor 4 | . . . . . 4 Propulsion 28 | 2 . . . 11 15 Treads . | . . . . . . Leg 25 | 2 . . . 11 12 Wheel 3 | . . . . . 3 Hover . | . . . . . . Flight . | . . . . . . Utility 20 | 2 2 1 . 10 5 Device 9 | . . . . 7 2 Storage 6 | 1 1 . . 2 2 Processor 1 | . . . . 1 . Hackware . | . . . . . . Protection 4 | 1 1 1 . . 1 Artifact . | . . . . . . Weapon 18 | 1 1 . 1 8 7 Energy Gun 5 | . . . 1 3 1 Energy Cannon 1 | . . . . . 1 Ballistic Gun 8 | 1 1 . . 5 1 Ballistic Cannon 1 | . . . . . 1 Launcher 1 | . . . . . 1 Special Weapon 2 | . . . . . 2 Impact Weapon . | . . . . . . Slashing Weapon . | . . . . . . Piercing Weapon . | . . . . . . Special Melee Weapon . | . . . . . . Unidentified Prototypes 5 | . . . . 2 3 Parts Lost 49 | . . 2 . 10 37 Power 7 | . . . . 2 5 Propulsion 14 | . . . . 2 12 Utility 14 | . . 1 . 4 9 Weapon 14 | . . 1 . 2 11 Highest Loss Streak 33 | . . 2 . 4 33 To Critical Strikes 1 | . . . . . 1 Average Backups 8 | . 5 6 7 8 11 Power . | . . . . . . Propulsion 1 | . . . . 1 4 Utility 3 | . 4 4 4 1 4 Weapon 2 | . 1 2 2 4 1 Tool/Special . | . . . . . . Unused Backups 15 | . . 1 2 6 6 Power 1 | . . . . 1 . Propulsion 5 | . . . . 2 3 Utility 6 | . . 1 2 . 3 Weapon 2 | . . . . 2 . Tool/Special 1 | . . . . 1 . Average Slot Usage (%) 84 | . 97 83 82 81 83 Engine 8 | . 12 12 12 8 4 Reactor 1 | . . . . . 3 Leg 23 | . 25 25 25 20 23 Device 9 | . . . . 11 15 Storage 13 | . 12 12 12 15 12 Processor 1 | . . . . . 4 Protection 6 | . 25 16 12 1 . Energy Gun 3 | . . . 7 7 . Ballistic Gun 14 | . 22 16 12 10 14 Peak Build Rating 127 | 6 8 9 14 90 127 Average Rating 54 | 4 7 8 12 52 99 On Entrance 21 | . 6 8 9 14 90 Avg Prop Armor Cover (%) 4 | . . . . 4 17 Naked Turns 6 | . . . . . 6 Heaviest Build 92 | 19 20 29 33 68 92 Greatest Support 113 | 20 20 20 20 73 113 Greatest Overweight (x) 7 | . . 1 1 1 7 Average Overweight (x) . | . . . 1 . . Largest Inventory Capacity 15 | 10 10 8 8 10 15 Average Capacity 10 | 8 8 8 8 9 13 Most Carried 15 | 2 8 8 8 10 15 Average Carried 8 | . 5 7 7 8 11 Final Capacity 10 | 10 8 8 8 10 5 Final Carried 10 | 2 7 7 8 10 3 Class Distribution -------------------- 46% | Hacker-Mutant 32% | Scavenger-Skirmisher 9% | Scavenger-Gunner 6% | Hacker-Skirmisher 3% | Hacker-Tank Dominant Class ---------------- Hacker-Mutant | -10/Materials Hacker-Mutant | -10/Subcaves Hacker-Mutant | -7/Recycling Scavenger-Gunner | -5/Factory Scavenger-Skirmisher | -4/Factory Resources | -11 -10 -10 -7 -5 -4 ----------- Run | Yrd Mat Sub Rec Fac Fac Matter Collected 2749 | 237 234 56 14 928 1280 Remotely . | . . . . . . Salvage Created 4406 | . 155 . 46 1884 2321 Parts 218 | . 8 . 1 89 120 Haulers Intercepted 2 | . 1 . . 1 . Recyclers Shooed 1 | . . . . . 1 Parts Field Recycled . | . . . . . . Retrieved Matter . | . . . . . . Parts Self-Destructed . | . . . . . . Prevented . | . . . . . . Parts Restored . | . . . . . . Kills | -11 -10 -10 -7 -5 -4 ------- Run | Yrd Mat Sub Rec Fac Fac Combat Hostiles Destroyed 70 | . 5 . 1 26 38 Guns 50 | . 5 . 1 22 22 Cannons 8 | . . . . . 8 AOE 10 | . . . . 3 7 Classes Destroyed 15 | . 3 . 1 8 3 Worker 8 | . . . . 3 5 Builder 10 | . 1 . . 2 7 Hauler 2 | . 1 . . 1 . Recycler 3 | . . . . . 3 Mechanic 1 | . . . . . 1 Watcher 3 | . . . . 3 . Swarmer 13 | . 5 . . 1 7 Saboteur 1 | . . . . . 1 Grunt 20 | . . . . 10 10 Duelist 2 | . . . . 1 1 Sentry 4 | . . . . 2 2 Specialist 3 | . . . . 3 . Hunter 6 | . . . . 3 3 Programmer 20 | . . . 1 5 14 Heavy 1 | . . . . 1 . Best Kill Streak 14 | . 3 . 1 6 14 Combat Bots Only 9 | . 2 . 1 6 9 Max Kills in Single Turn 4 | . 1 . 1 2 4 Gunslinging 1 | . . . . 1 1 Exploded 3 | . . . . 2 3 Melee . | . . . . . . Uniques/NPCs Destroyed . | . . . . . . Combat | -11 -10 -10 -7 -5 -4 -------- Run | Yrd Mat Sub Rec Fac Fac Hostile Shots Fired 919 | . 13 37 6 177 686 Missed 261 | . 1 6 . 56 198 Hits 658 | . 12 31 6 121 488 Melee 27 | . . . . 2 25 Projectile 631 | . 12 31 6 119 463 AOE 2 | . . . . . 2 Critical Strikes 43 | . . 1 . 4 38 Actively Blocked 1 | . . 1 . . . Part Disruptions 2 | . . . 1 1 . Damage Taken 7696 | . 62 302 56 1652 5624 Core 1399 | . 25 21 9 188 1156 Absorbed by Shields . | . . . . . . Redirected to Shielding 16 | . 3 13 . . . Ignored by Resistances 5283 | . 43 187 35 963 4055 Core Remaining (%) 86 | 100 . . 78 81 . Volleys Fired 216 | . 22 14 4 63 113 Largest 4 | . 2 2 2 4 4 Hottest 258 | . 40 40 100 258 206 Shots Fired 563 | . 41 22 8 206 286 Gun 479 | . 41 22 8 206 202 Cannon 70 | . . . . . 70 Launcher 10 | . . . . . 10 Special 4 | . . . . . 4 Kinetic 432 | . 41 22 4 147 218 Thermal 103 | . . . 4 41 58 Explosive 10 | . . . . . 10 Electromagnetic 18 | . . . . 18 . Robot Hit Streak 39 | . 10 20 10 39 33 Robot Miss Streak 5 | . 3 1 1 3 5 Penetration Max 2 | . . . . 1 2 Secondary Targets 5 | . . . . 4 1 Max Gunslinging Chain 1 | . . . . 1 1 Shots Hit Robots 459 | . 30 21 7 168 233 Core Hits 234 | . 10 8 3 90 123 Critical Kills 12 | . 1 . . 5 6 Critical Parts Destroyed 19 | . 2 . . 5 12 Critical Strikes 42 | . 3 . . 12 27 Burn 3 | . . . . 1 2 Destroy 31 | . 3 . . 10 18 Blast 7 | . . . . . 7 Corrupt 1 | . . . . 1 . Melee Attacks . | . . . . . . Impact . | . . . . . . Slashing . | . . . . . . Piercing . | . . . . . . Sneak Attacks . | . . . . . . Combat Hostiles . | . . . . . . Follow-up Attacks . | . . . . . . Damage Inflicted 13489 | . 299 204 118 3878 8990 Guns 8437 | . 299 204 116 3370 4448 Cannons 2238 | . . . . . 2238 Explosions 2792 | . . . . 508 2284 Melee . | . . . . . . Ramming 12 | . . . 2 . 10 Kinetic 7893 | . 299 204 23 2265 5102 Thermal 3012 | . . . 93 1325 1594 Explosive 2062 | . . . . . 2062 Electromagnetic 510 | . . . . 288 222 Impact . | . . . . . . Slashing . | . . . . . . Piercing . | . . . . . . Highest Corruption 13 | . . . . 6 13 Average Corruption 3 | . . . . 2 3 Corruption Purged 6 | . . . . 6 . Corruption Blocked . | . . . . . . Effects 24 | . . . . 14 10 Message Errors 5 | . . . . 4 1 Matter Fused 6 | . . . . 3 3 Heat Flow Errors 1 | . . . . 1 . Energy Discharges 3 | . . . . 1 2 Data Loss (minor) 6 | . . . . 4 2 Misfires 1 | . . . . 1 . Misdirections 1 | . . . . . 1 Weapon Failures 1 | . . . . . 1 Overload Shots . | . . . . . . Overflow Damage 230 | . . . . 77 153 Projectiles 52 | . . . . . 52 Explosions 178 | . . . . 77 101 Melee . | . . . . . . Knockbacks 13 | . . . . . 13 Impact . | . . . . . . Kinetic 11 | . . . . . 11 Secondary 2 | . . . . . 2 Self-Inflicted Damage 204 | . . . . 101 103 Shots 6 | . . . . 2 4 Rammed . | . . . . . . Targets Rammed 5 | . . . 1 . 4 Kicked 5 | . . . 1 . 4 Crushed . | . . . . . . Highest Temperature 727 | . 12 . 117 727 369 Average Temperature 105 | . 4 . 49 139 102 Received Heat Transfer 1514 | . . 141 . 510 863 Effects 13 | . . . . 11 2 Shutdowns 4 | . . . . 4 . Energy Bleed 1 | . . . . . 1 Matter Decay 2 | . . . . 2 . Short Circuit 1 | . . . . 1 . Damage (minor) 1 | . . . . . 1 Damage (major) 4 | . . . . 4 . Siege Activations . | . . . . . . Martial Activations . | . . . . . . Shielding Activations . | . . . . . . Robots Disrupted . | . . . . . . Combat Hostiles . | . . . . . . Robots Corrupted . | . . . . . . Combat Hostiles . | . . . . . . Parts Fried 1 | . . . . 1 . Impact Corruptions 1 | . . . . . 1 Robots Melted 1 | . . . . . 1 Combat Hostiles 1 | . . . . . 1 Parts Melted 6 | . . . . 5 1 Heat Transferred 3573 | . . . 175 2250 1148 Parts Sabotaged . | . . . . . . Parts Stolen . | . . . . . . Parts Stripped . | . . . . . . Power Chain Reactions 2 | . . . . 2 . Alert | -11 -10 -10 -7 -5 -4 ------- Run | Yrd Mat Sub Rec Fac Fac Maximum Alert Level 3 | . . . . . 3 Low Security (%) 82 | 100 100 . 100 100 54 Level 1 4 | . . . . . 11 Level 2 10 | . . . . . 27 Level 3 2 | . . . . . 6 Level 4 . | . . . . . . Level 5 . | . . . . . . High Security . | . . . . . . Max Security . | . . . . . . Peak Influence 765 | . 70 . 20 161 765 Initial 36 | . . . 5 . 36 Average 115 | . 10 . . 33 267 Influence Increases 2625 | . 150 45 25 761 1644 Destroy 0b10 Robot/C 1400 | . 100 . 20 520 760 Destroy 0b10 Robot/NC 140 | . 10 . 5 45 80 Destroy Leader 300 | . 22 . . 118 160 Trap Triggered on 0b10 20 | . . . . . 20 Successful Hack 7 | . 3 . . . 4 Disable Machine 56 | . . . . 12 44 Destroy Structure 252 | . . . . 66 186 Partial Spotted 15 | . . . . . 15 Lose Combat Pursuer 135 | . 15 45 . . 75 Active Sensor Use 300 | . . . . . 300 Influence Decreases 2097 | . 150 30 40 660 1217 Entered New Map 75 | . . . 10 . 65 Time Decay 1582 | . 150 30 30 590 782 Lost Part 440 | . . . . 70 370 Squads Dispatched 20 | . . . . 9 11 Investigation 4 | . . . . 1 3 Extermination 6 | . . . . 3 3 Reinforcement 6 | . . . . 3 3 Assault 3 | . . . . 1 2 Garrison 1 | . . . . 1 . Intercept . | . . . . . . Searches Triggered . | . . . . . . Construction Impeded 1 | . . . . . 1 Haulers Reinforced 1 | . . . . 1 . Active Scanning Responses 3 | . . . . . 3 Cargo Convoy Interrupts 1 | . . . . 1 . Stealth | -11 -10 -10 -7 -5 -4 --------- Run | Yrd Mat Sub Rec Fac Fac Distress Signals 11 | . 3 . 1 1 6 Communications Jammed . | . . . . . . Distress Signals . | . . . . . . Times Spotted 131 | . 11 17 1 32 70 Peak Tracking Total 8 | . 3 6 1 4 8 Tactical Retreats 8 | . 1 1 . . 6 ECM-based Alert Blocks 3 | . . . . . 3 Traps | -11 -10 -10 -7 -5 -4 ------- Run | Yrd Mat Sub Rec Fac Fac Traps Triggered 6 | . 1 . . 4 1 Indirectly . | . . . . . . Trap Hack Attempts . | . . . . . . Triggered . | . . . . . . Disarmed . | . . . . . . Reprogrammed 5 | . . . . . 5 Reused 2 | . . . . . 2 Traps Extracted . | . . . . . . Installed . | . . . . . . Triggered 2 | . . . . . 2 Machines | -11 -10 -10 -7 -5 -4 ---------- Run | Yrd Mat Sub Rec Fac Fac Machines Disabled 14 | . . . . 3 11 Max in Single Turn 3 | . . . . 2 3 Garrison Access 1 | . . . . 1 . Machines Repaired . | . . . . . . Machines Dismantled . | . . . . . . Machines Sabotaged . | . . . . . . Overloaded Fab Kills . | . . . . . . Hacking | -11 -10 -10 -7 -5 -4 --------- Run | Yrd Mat Sub Rec Fac Fac Machines Accessed 7 | . 2 . 1 1 3 Terminals 6 | . 2 . 1 1 2 Fabricators . | . . . . . . Repair Stations . | . . . . . . Recycling Units 1 | . . . . . 1 Scanalyzers . | . . . . . . Garrison Access . | . . . . . . Total Hacks 14 | . 4 . 2 1 7 Successful 11 | . 3 . . 1 7 Failed 3 | . 1 . 2 . . Catastrophic . | . . . . . . Database Lockouts . | . . . . . . Manual . | . . . . . . Terminals 11 | . 4 . 2 1 4 Fabricators . | . . . . . . Repair Stations . | . . . . . . Recycling Units 3 | . . . . . 3 Scanalyzers . | . . . . . . Garrison Access . | . . . . . . Terminal Hacks 8 | . 3 . . 1 4 Open DSF 1 | . . . . 1 . Emergency Access Points 1 | . . . . . 1 Locate Traps 2 | . . . . . 2 Reprogram Traps 1 | . . . . . 1 Transport Status 1 | . 1 . . . . Hauler Manifests 1 | . 1 . . . . Registered Components 1 | . 1 . . . . Fabricator Hacks . | . . . . . . Repair Station Hacks . | . . . . . . Recycling Unit Hacks 3 | . . . . . 3 Report Inventory 1 | . . . . . 1 Retrieve Matter 1 | . . . . . 1 Retrieve Components 1 | . . . . . 1 Scanalyzer . | . . . . . . Garrison Access Hacks . | . . . . . . Unauthorized Hacks . | . . . . . . Terminals . | . . . . . . Fabricators . | . . . . . . Repair Stations . | . . . . . . Recycling Units . | . . . . . . Scanalyzers . | . . . . . . Garrison Access . | . . . . . . Data Cores Recovered 1 | . . . . 1 . Used . | . . . . . . Hacking Detections 2 | . . . 1 1 . Full Trace Events . | . . . . . . Feedback Events . | . . . . . . Feedback Blocked . | . . . . . . Robot Schematics Acquired . | . . . . . . Robots Built . | . . . . . . Authchips . | . . . . . . Time . | . . . . . . Total Robot Build Rating . | . . . . . . Part Schematics Acquired . | . . . . . . Parts Built . | . . . . . . Authchips . | . . . . . . Time . | . . . . . . Total Part Build Rating . | . . . . . . Part Studies Acquired . | . . . . . . Parts Repaired . | . . . . . . Time . | . . . . . . Parts Recycled . | . . . . . . Recycled Matter . | . . . . . . Retrieved Matter . | . . . . . . Retrieved Components 1 | . . . . . 1 Parts Scanalyzed . | . . . . . . Part Schematics Acquired . | . . . . . . Parts Damaged . | . . . . . . Bothacking | -11 -10 -10 -7 -5 -4 ------------ Run | Yrd Mat Sub Rec Fac Fac Used RIF Installer . | . . . . . . Robots Hacked . | . . . . . . Non-combat . | . . . . . . Combat . | . . . . . . Robot Hacks Applied . | . . . . . . Relay Couplers Released 7 | . . . . 3 4 Machine Destruction 3 | . . . . 3 . Programmers 4 | . . . . . 4 Fabnet Peak Effective % . | . . . . . . Robots Rewired . | . . . . . . Allies Hacked . | . . . . . . Hacks Repelled . | . . . . . . Allies | -11 -10 -10 -7 -5 -4 -------- Run | Yrd Mat Sub Rec Fac Fac Total Allies . | . . . . . . Largest Group . | . . . . . . Highest-Rated Group . | . . . . . . Highest-Rated Ally . | . . . . . . Total Orders . | . . . . . . Ally Attacks . | . . . . . . Total Damage . | . . . . . . Kills . | . . . . . . Allies Corrupted . | . . . . . . Allies Melted . | . . . . . . Intel | -11 -10 -10 -7 -5 -4 ------- Run | Yrd Mat Sub Rec Fac Fac Active Infowar (turns) 1996 | . . . . 756 1240 Sensors 740 | . . . . 740 . A.S.S. 1256 | . . . . 16 1240 ECM 44 | . . . . . 44 Robot Analysis Total . | . . . . . . Derelict Logs Recovered . | . . . . . . Drone Launches . | . . . . . . Drone Recoveries . | . . . . . . Exploration | -11 -10 -10 -7 -5 -4 ------------- Run | Yrd Mat Sub Rec Fac Fac Turns Passed 3827 | 59 510 333 423 1160 1342 Spaces Moved 2144 | 43 365 177 213 678 668 Core 24 | 8 . . . . 16 Treads . | . . . . . . Legs 2088 | 35 365 177 213 678 620 Wheels 32 | . . . . . 32 Hover . | . . . . . . Flight . | . . . . . . Fastest Speed 50 | 50 120 120 190 100 50 Average Speed 131 | 106 120 164 190 128 113 Slowest Speed 400 | 120 120 190 190 189 400 Overloaded Moves . | . . . . . . Propulsion Burnouts . | . . . . . . Robots Hopped . | . . . . . . Potential Cave-ins 5 | . . . . . 5 Cave-ins Triggered 1 | . . . . . 1 Exploration Rate (%) 26 | 3 65 10 41 19 21 Regions Visited 5 Branch Regions 2 Pre-discovered Areas . | . . . . . . Known Exits Taken 5 | 1 1 1 1 1 . Unknown Exits Taken . | . . . . . . Scrap Searched . | . . . . . . Spaces Dug . | . . . . . . Terrain Destroyed 127 | . . . . 29 98 Melee . | . . . . . . Projectile 48 | . . . . 3 45 AOE 78 | . . . . 25 53 Terrain Rammed . | . . . . . . Walls Destroyed . | . . . . . . Machines Disabled . | . . . . . . Actions | -11 -10 -10 -7 -5 -4 --------- Run | Yrd Mat Sub Rec Fac Fac Total 2759 | 56 400 201 224 840 1038 Wait 187 | . 2 6 . 1 178 Move 2139 | 42 364 176 212 677 668 Hop . | . . . . . . Pick Up 79 | 8 8 2 4 34 23 Fast Attach 7 | . . . . 5 2 Attach 53 | 6 3 1 1 18 24 Detach . | . . . . . . Swap 29 | . 1 . . 15 13 Drop 41 | . . 2 2 24 13 Fire 216 | . 22 14 4 63 113 Melee . | . . . . . . Ram . | . . . . . . Kick 5 | . . . 1 . 4 Crush . | . . . . . . Escape Stasis 3 | . . . . 3 . Rewire . | . . . . . . Trap . | . . . . . . Miscellaneous . | . . . . . . Route ------- -11/Scrapyard -10/Materials (discovered 4 exits: *Mat / *Min x2 / *Sub) -10/Subcaves -7/Recycling -5/Factory -4/Factory History --------- Turn | Location | Event 3 | -11/Scrapyard | Identified exit to Materials 3 | -11/Scrapyard | Discovered exit to Materials (range 16) 60 | -11/Scrapyard | Entered Materials 60 | -10/Materials | Evolved 1 slot: Utility x1 127 | -10/Materials | Identified exit to Mines 127 | -10/Materials | Discovered exit to Mines (range 11) 301 | -10/Materials | Identified exit to Materials 301 | -10/Materials | Discovered exit to Materials (range 9) 307 | -10/Materials | Build established: Hacker-Mutant 386 | -10/Materials | Discovered exit to Mines (range 15) 546 | -10/Materials | Identified exit to Subcaves 546 | -10/Materials | Discovered exit to Subcaves (range 7) 570 | -10/Materials | Entered Subcaves 571 | -10/Subcaves | Approached by a straggling Scientist 654 | -10/Subcaves | Ambushed by swarm of Subdwellers 667 | -10/Subcaves | Ambushed by Subdwellers from Twisted Machinery 776 | -10/Subcaves | A swath of the cavern ceiling suddenly collapsed 865 | -10/Subcaves | Identified exit to Recycling 865 | -10/Subcaves | Discovered exit to Recycling (range 13) 903 | -10/Subcaves | Entered Recycling 904 | -7/Recycling | Met a Zionite searching for Scraptown 904 | -7/Recycling | Joined Warlord attack on 0b10 via Recycling 1201 | -7/Recycling | Scanned before Scraplab entrance 1277 | -7/Recycling | Identified exit to Factory 1277 | -7/Recycling | Discovered exit to Factory (range 16) 1326 | -7/Recycling | Entered Factory 1326 | -5/Factory | Evolved 10 slots: Power x1, Propulsion x2, Utility x5, Weapon x2 1443 | -5/Factory | Spotted B-75 Beast 1777 | -5/Factory | Garrison activated, responded to threat 1783 | -5/Factory | Cargo convoy interrupted 2372 | -5/Factory | Identified exit to Factory 2372 | -5/Factory | Discovered exit to Factory (range 12) 2432 | -5/Factory | Lost 4 parts (1p1n1u1w) 2467 | -5/Factory | Found Prototype Device 2469 | -5/Factory | Identified Active Sensor Suite 2486 | -5/Factory | Entered another Factory area 2486 | -4/Factory | Evolved 2 slots: Propulsion x1, Utility x1 2776 | -4/Factory | Build established: Scavenger-Skirmisher 3255 | -4/Factory | Destroyed 9 combat bots 3322 | -4/Factory | Found Prototype Device 3323 | -4/Factory | Identified Exp. ECM Suite 3486 | -4/Factory | First assault squad dispatched 3760 | -4/Factory | Core integrity fell below 50% 3773 | -4/Factory | System corruption reached 10% 3798 | -4/Factory | Core integrity fell below 20% 3825 | -4/Factory | Crushed by falling debris 3828 | -4/Factory | Destroyed by H-77 Assassin with High-powered Shotgun Last Messages --------------- 03822_ U-05 Engineer lays Concrete. 03823_ Extracted 16 matter. 03823_ U-05 Engineer builds a Wall. 03823_ K-01 Serf collects debris. 03823_ U-05 Engineer lays Concrete. 03823_ Slug penetrates Wall. 03823_ Acquired Med. Matter Pod. 03824_ U-05 Engineer lays Concrete. 03825_ The unstable cave ceiling collapses. 03825_ Crushed by falling debris. 03825_ Med. Matter Pod destroyed. 03825_ System corrupted by crushing effect (+1). 03825_ K-01 Serf collects debris. 03825_ U-05 Engineer lays Concrete. 03827_ Slug penetrates H-77 Assassin. 03827_ Slug penetrates Wall. 03827_ U-05 Engineer builds a Wall. 03827_ K-01 Serf collects debris. 03827_ U-05 Engineer lays Concrete. 03828_ K-01 Serf collects debris. Map ----- +----------------------------------------------------+ | ?????????????????????????????????????????????????? | | ?????????????????????????????????????????????????? | | ??????????????????????#####??????????????????????? | | ??????????????????????# ??????????????????????? | | ??????????????????? ??# ??????????????????????? | | ??????????????????# ??# """?????????????????????? | | ??????????????????# ??# """"????????????????????? | | ??????????????????# ??# """"#???????????????????? | | ??????????????????# ??# """"#########???????????? | | ??????????????????# ??# """"## #???????????? | | ??????????????????# ??# """"## """" #???????????? | | ??????????????????#%### "" ## """" #???????????? | | ??????????????###?# # =%* ## """" #???????????? | | ??????????????? # +*%! ! ## """" #???????????? | | ????????????# + #=%== # #???????????? | | ????????????#?????# # = ######+###?????????? | | ????????????+ # ####+####### #?????????? | | ??????????? # =# % !% #####?????? | | ??????????????????#% %% = % #?????? | | ??????????????????# =% ! * ### #?????? | | ??????????????????## ############# #?????????? | | ???????????????????# ## # # #### ###?????????? | | ???????????????????# # ;##### #???????????? | | ???????????????????# # ! p/!%!| #???????????? | | ????????# ########## # k #######???????????? | | ????????# # kh@ ;#????????????????? | | ????????# #### ##### # h ;#????????????????? | | ?????????????# #???# ## ;#????????????????? | | ?????????????# #??#" #u ##????????????????? | | ?????????????# #??## "# u# ????????????????? | | ?????????????# #???# " # ???????????????? | | ?????????????# #???# ;; # "??????????????? | | ?????????????# #???# #;;;;#+####? ???????????????? | | ?????????????# #??? ???????????????????? | | ?????????????# #??# ????????????????????? | | ??????????####+#### ?????????????????????? | | ??????????+ # ?????????????????????? | | ??????????# # ?????????????????????? | | ??????????# # ###??????????????????????? | | ??????????# # #????????????????????????? | | ??????????# # #????????????????????????? | | ??????????# # #????????????????????????? | | ??????????# # #????????????????????????? | | ??????????# # #????????????????????????? | | ? ???""???# # #????????????????????????? | | ?? ???# # % #????????????????????????? | | ###"#### " % #????????????????????????? | | # #% # ?????????????????????? | | # # # "????????????????????? | | # "" # # ?? ??????????????????? | +----------------------------------------------------+ Best States ------------- Heat Dissipation 57 Energy Generation 37 Energy Capacity 700 Matter Stores 400 Matter Capacity 400 Sight Range 16 Robot Scan Range 20 Terrain Scan Density 10 ECM Strength 3 Armor Coverage 800 Resistance: KI 60 Resistance: TH 35 Resistance: EX 35 Resistance: EM 35 Resistance: I 35 Resistance: S 35 Resistance: P 35 Propulsion Shielding 33 Phase Shifting 5 Evasion (%) 60 Target Analysis 6 Kinecelleration 40 Offensive Hacking 20 Item Schematics ----------------- None Robot Schematics ------------------ None Fabricated ------------ Nothing Repaired ---------- Nothing Studied --------- None Alien Tech Used ----------------- None Achievements -------------- Botjacking Ew, Corruption Heavy Suspicion I Spy It's Just You Jackpot Oh No You Don't! Significant Disruption Some Acronyms Are Better Than Others Sprinter That Tickles You May Approach The Wall Challenges ------------ None Game ------ Seed PointyGunReconstructor Manual? 0 Play Time 01:22:59 Cumulative 25.8 hours Start 2026.03.13 @ 08:33:23 End 2026.03.14 @ 08:51:52 Sessions 3 Manual Loads 0 Difficulty Explorer Special Mode None Game No. 38 Rogue 35 Adventurer 0 Explorer 3 Win Type - Total 0 Types 0/0/0/0/0/0/0/0/0/0 Lore% 2 Gallery% 23 Achievement% 13 Wizard Run 0 Options --------- Layout 1 ASCII 0 Keyboard 0 Movement Mouse Keybinds 0 Fullscreen 1 Font 48/Smallcaps Map View 50x35 Zoom Use 0% Tactical HUD 1 Map Filters NONE Filters NONE Steam 1 RUN: d9e1f6c1-1b08-4f94-9913-da28899905a0